fUST/lending_fUST_20250806
["ID","MTS","AMOUNT","RATE_DAILY","PERIOD"]
[377471663,1754419862595,-153.0,0.00039615,30]
[377471664,1754419862605,-153.0,0.00039615,30]
[377471665,1754419862615,-153.0,0.00039615,30]
[377471666,1754419862624,-153.0,0.00039615,30]
[377471667,1754419862634,-153.0,0.00039615,30]
[377471668,1754419862643,-153.0,0.00039615,30]
[377471669,1754419862652,-153.0,0.00039615,30]
[377471670,1754419862661,-153.0,0.00039615,30]
[377471671,1754419862671,-153.0,0.00039615,30]
[377471672,1754419862681,-153.0,0.00039615,30]
[377471673,1754419862691,-153.0,0.00039615,30]
[377471674,1754419862701,-1100.0,0.00039653,7]
[377471675,1754419862710,-395.138313,0.00039654,2]
[377471676,1754419862719,-261.599195,0.00039675,7]
[377471677,1754419862729,-200.0,0.00039714,120]
[377471678,1754419862738,-1259.18125811,0.00039725,2]
[377471679,1754419862747,-500.0,0.00039726,2]
[377471680,1754419862757,-500.0,0.00039726,2]
[377471681,1754419862766,-720.0,0.00039726,2]
[377471682,1754419862777,-500.0,0.00039726,2]
[377471683,1754419862786,-500.0,0.00039726,2]
[377471684,1754419862796,-500.0,0.00039726,120]
[377471685,1754419862805,-201.66,0.0003978,33]
[377471686,1754419862815,-3802.32,0.000398,7]
[377471687,1754419862825,-38968.32,0.000398,14]
[377471688,1754419862835,-500.0,0.00039859,7]
[377471689,1754419862844,-1178.42610404,0.00039877,120]
[377471690,1754419862854,-200.0,0.00039999,30]
[377471691,1754419862864,-339.902248,0.00039999,31]
[377471692,1754419862874,-500.0,0.00039999,31]
[377471693,1754419862885,-500.0,0.00039999,31]
[377471694,1754419862895,-608.82045531,0.00039999,31]
[377471695,1754419862905,-165.51953337,0.00039999,2]
[377471696,1754419862915,-500.0,0.00039999,31]
[377471697,1754419862924,-483.8424409,0.00039999,2]
[377471698,1754419862933,-314.32901179,0.00039999,7]
[377471699,1754419862943,-400.10289567,0.00039999,31]
[377471700,1754419862952,-422.18336387,0.00039999,31]
[377471701,1754419862963,-164.5198495,0.00039999,31]
[377471702,1754419862972,-500.0,0.00039999,2]
[377471703,1754419862982,-500.0,0.00039999,2]
[377471704,1754419862992,-381.09660962,0.00039999,2]
[377471705,1754419863001,-500.0,0.00039999,2]
[377471706,1754419863011,-500.0,0.0004,2]
[377471707,1754419863021,-500.0,0.0004,2]
[377471708,1754419863032,-720.0,0.0004,2]
[377471709,1754419863042,-500.0,0.0004,2]
[377471710,1754419863052,-9842.11469012,0.0004,2]
[377471711,1754419863061,-3057.8931863,0.0004,120]
[377471712,1754419863071,-100506.6522122,0.0004,30]
[377471713,1754419863081,-603.23931261,0.0004,30]
[377471714,1754419863091,-6114.35140547,0.0004,30]
[377471715,1754419863100,-88545.11449749,0.0004,30]
[377471716,1754419863110,-208842.55515496,0.0004,120]
[377471717,1754419863190,-1654827.10223844,0.0004,120]
[377471718,1754419863321,-460.95174316,0.00026252,2]
[377471719,1754419864476,-489.67580029,0.00025737,2]
[377471720,1754419864486,-558.9744247,0.00026252,2]
[377471721,1754419864496,-460.0,0.00027397,2]
[377471722,1754419864506,-460.0,0.00027397,2]
[377471723,1754419864515,-460.0,0.00027397,2]
[377471724,1754419864525,-460.0,0.00027397,2]
[377471725,1754419864535,-460.0,0.00027671,2]
[377471726,1754419864544,-460.0,0.00027671,2]
[377471727,1754419864554,-460.0,0.00027671,2]
[377471728,1754419864563,-249.57,0.00027935,10]
[377471729,1754419864573,-460.0,0.00027945,2]
[377471730,1754419864583,-460.0,0.00027945,2]
[377471731,1754419864593,-536.79,0.00028219,2]
[377471732,1754419864602,-460.0,0.00028219,2]
[377471733,1754419864613,-460.0,0.00028219,2]
[377471734,1754419864623,-536.79,0.00028493,2]
[377471735,1754419864634,-460.0,0.00028493,2]
[377471736,1754419864644,-460.0,0.00028493,2]
[377471737,1754419864653,-536.79,0.00028767,2]
[377471738,1754419864663,-460.0,0.00028767,2]
[377471739,1754419864672,-460.0,0.00028767,2]
[377471740,1754419864682,-536.79,0.00029041,2]
[377471741,1754419864691,-460.0,0.00029041,2]
[377471742,1754419864700,-460.0,0.00029041,2]
[377471743,1754419864710,-536.79,0.00029315,2]
[377471744,1754419864719,-169.82977501,0.00029315,2]
[377471745,1754419865251,-460.0,0.00027397,2]
[377471746,1754419865261,-290.17022499,0.00029315,2]
[377471747,1754419865270,-460.0,0.00029315,2]
[377471748,1754419865279,-536.79,0.00029589,2]
[377471749,1754419865289,-460.0,0.00029589,2]
[377471750,1754419865298,-460.0,0.00029589,2]
[377471751,1754419865308,-536.79,0.00029863,2]
[377471752,1754419865317,-460.0,0.00029863,2]
[377471753,1754419865326,-460.0,0.00029863,2]
[377471754,1754419865335,-536.79,0.00030136,2]
[377471755,1754419865346,-460.0,0.00030136,2]
[377471756,1754419865355,-460.0,0.00030136,2]
[377471757,1754419865366,-507.70286613,0.0003041,2]
[377471758,1754419873126,160.0,0.0002,3]
[377471760,1754419967036,-447.7579135,0.00024696,2]
[377471761,1754419967062,-500.0,0.00024925,2]
[377471762,1754419967084,-500.0,0.00024925,2]
[377471763,1754419967107,-164.5198495,0.00024925,2]
[377471764,1754419967130,-500.0,0.00024925,2]
[377471765,1754419967153,-165.51953337,0.00024925,2]
[377471766,1754419967181,-500.0,0.00024925,2]
[377471767,1754419967206,-500.0,0.00024925,2]
[377471768,1754419967226,-187.91991152,0.00024925,2]
[377471769,1754419967249,-500.0,0.00024925,2]
[377471770,1754419967274,-500.0,0.00024925,2]
[377471771,1754419967296,-500.0,0.00024925,2]
[377471772,1754419967318,-500.0,0.00024925,2]
[377471773,1754419967340,-342.98694866,0.00024925,2]
[377471774,1754419967362,-500.0,0.00024925,2]
[377471775,1754419967384,-400.10289567,0.00024925,2]
[377471776,1754419967412,-500.0,0.00024925,2]
[377471777,1754419967434,-24404.19294778,0.00024926,2]
[377471779,1754420057617,-300.0,0.00024924,2]
[377471780,1754420057640,-500.0,0.00024925,2]
[377471781,1754420057809,-517.33393123,0.00024925,2]
[377471782,1754420057831,-500.0,0.00024925,2]
[377471783,1754420057855,-500.0,0.00024925,2]
[377471784,1754420057879,-500.0,0.00024925,2]
[377471785,1754420057901,-500.0,0.00024925,2]
[377471786,1754420057925,-500.0,0.00024925,2]
[377471787,1754420057948,-500.0,0.00024925,2]
[377471788,1754420057972,-500.0,0.00024925,2]
[377471789,1754420057992,-500.0,0.00024925,2]
[377471790,1754420058016,-500.0,0.00024925,2]
[377471791,1754420058042,-288.75953366,0.00024925,2]
[377471792,1754420058066,-500.0,0.00024925,2]
[377471793,1754420058090,-500.0,0.00024925,2]
[377471794,1754420058112,-500.0,0.00024925,2]
[377471795,1754420058135,-500.0,0.00024925,2]
[377471796,1754420058158,-500.0,0.00024925,2]
[377471797,1754420058181,-500.0,0.00024925,2]
[377471798,1754420058204,-500.0,0.00024925,2]
[377471799,1754420058228,-500.0,0.00024925,2]
[377471800,1754420058250,-500.0,0.00024925,2]
[377471801,1754420058272,-500.0,0.00024925,2]
[377471802,1754420058295,-500.0,0.00024925,2]
[377471803,1754420058317,-500.0,0.00024925,2]
[377471804,1754420058339,-549.99999999,0.00024925,2]
[377471805,1754420058361,-500.0,0.00024925,2]
[377471806,1754420058383,-500.0,0.00024925,2]
[377471807,1754420058406,-500.0,0.00024925,2]
[377471808,1754420058432,-500.0,0.00024925,2]
[377471809,1754420058455,-519.82404502,0.00024925,2]
[377471810,1754420058480,-499.99999999,0.00024925,2]
[377471811,1754420058502,-500.0,0.00024925,2]
[377471812,1754420058524,-500.0,0.00024925,2]
[377471813,1754420058547,-500.0,0.00024925,2]
[377471814,1754420058570,-500.0,0.00024925,2]
[377471815,1754420058604,-500.0,0.00024925,2]
[377471816,1754420058628,-529.96502748,0.00024925,2]
[377471817,1754420058650,-500.0,0.00024925,2]
[377471818,1754420058673,-500.0,0.00024925,2]
[377471819,1754420058697,-500.0,0.00024925,2]
[377471820,1754420058720,-500.0,0.00024925,2]
[377471821,1754420058743,-500.0,0.00024925,2]
[377471822,1754420058765,-500.0,0.00024925,2]
[377471823,1754420058788,-500.0,0.00024925,2]
[377471824,1754420058811,-500.0,0.00024925,2]
[377471825,1754420058833,-500.0,0.00024925,2]
[377471826,1754420058856,-500.0,0.00024925,2]
[377471827,1754420058880,-160.0,0.00024925,2]
[377471828,1754420058904,-500.0,0.00024925,2]
[377471829,1754420058928,-314.32901179,0.00024925,2]
[377471830,1754420058952,-495.80705222,0.00024926,2]
[377471831,1754420058974,-4427.64788469,0.00025537,2]
[377471832,1754420059000,-53648.33351393,0.00025645,2]
[377471833,1754420139008,-874.8160173,0.0002467,2]
[377471834,1754420139030,-431.07,0.00025634,10]
[377471835,1754420139050,-532.97,0.00025634,10]
[377471836,1754420139071,-444.14,0.00025634,10]
[377471837,1754420139092,-370.12,0.00025634,10]
[377471838,1754420139116,-300.0,0.00025643,2]
[377471839,1754420139136,-300.0,0.00025643,2]
[377471840,1754420139170,-300.0,0.00025643,2]
[377471841,1754420139191,-300.0,0.00025643,2]
[377471842,1754420139212,-1200.0,0.00025643,2]
[377471843,1754420139233,-482.64613659,0.00025644,2]
[377471844,1754420139255,-450.0,0.00025644,2]
[377471845,1754420139280,-500.0,0.00025644,2]
[377471846,1754420139303,-500.0,0.00025644,2]
[377471847,1754420139329,-500.0,0.00025644,2]
[377471848,1754420139353,-500.0,0.00025644,2]
[377471849,1754420139377,-202.99650275,0.00025644,2]
[377471850,1754420139402,-500.0,0.00025644,2]
[377471851,1754420139424,-500.0,0.00025644,2]
[377471852,1754420139451,-500.0,0.00025644,2]
[377471853,1754420139474,-500.0,0.00025644,2]
[377471854,1754420139500,-500.0,0.00025644,2]
[377471855,1754420139526,-500.0,0.00025644,2]
[377471856,1754420139549,-500.0,0.00025644,2]
[377471857,1754420139574,-500.0,0.00025644,2]
[377471858,1754420139596,-500.0,0.00025644,2]
[377471859,1754420139618,-500.0,0.00025644,2]
[377471860,1754420139642,-500.0,0.00025644,2]
[377471861,1754420139663,-500.0,0.00025644,2]
[377471862,1754420139689,-500.0,0.00025644,2]
[377471863,1754420139710,-500.0,0.00025644,2]
[377471864,1754420139734,-563.17464823,0.00025644,2]
[377471865,1754420139756,-500.0,0.00025644,2]
[377471866,1754420139777,-500.0,0.00025644,2]
[377471867,1754420139803,-500.0,0.00025644,2]
[377471868,1754420139824,-500.0,0.00025644,2]
[377471869,1754420139848,-500.0,0.00025644,2]
[377471870,1754420139868,-8179.06669513,0.00025644,2]
[377471874,1754420240983,358.853495,0.00013699,2]
[377471875,1754420241237,358.853495,0.00020187,2]
[377471881,1754420459410,-214.83749123,0.00024641,2]
[377471882,1754420506418,-451.16250877,0.00024641,2]
[377471883,1754420506606,-431.81523195,0.00025544,2]
[377471884,1754420507016,-863.6304639,0.00025544,2]
[377471885,1754420507236,-1727.2609278,0.00025544,2]
[377471886,1754420507412,-1545.4781444,0.00025544,2]
[377471887,1754420507442,-681.34402084,0.00025571,2]
[377471888,1754420507470,-237.92566952,0.00025634,10]
[377471889,1754420507679,-70.50433048,0.00025634,10]
[377471890,1754420507708,-257.03,0.00025634,10]
[377471891,1754420507737,-214.19,0.00025634,10]
[377471892,1754420507765,-178.49,0.00025634,10]
[377471893,1754420507793,-286.59,0.00025635,3]
[377471894,1754420507821,-859.79,0.00025635,3]
[377471895,1754420507849,-160.0,0.0002564,2]
[377471896,1754420507878,-300.0,0.00025641,2]
[377471897,1754420508227,-500.0,0.00025641,2]
[377471898,1754420508258,-337.85229562,0.00025642,2]
[377471899,1754420508289,-500.0,0.00025642,2]
[377471900,1754420508321,-173.68607203,0.00025642,2]
[377471901,1754420508350,-189.22183364,0.00025642,2]
[377471902,1754420508381,-500.0,0.00025642,2]
[377471903,1754420511589,-2286.47421751,0.00025644,2]
[377471904,1754420512585,-3559.8052403,0.00025645,2]
[377471905,1754420512739,-5000.0,0.00025645,2]
[377471906,1754420513097,-5000.0,0.00025645,2]
[377471907,1754420513219,-5000.0,0.00025645,2]
[377471908,1754420513388,-1905.39518126,0.00025644,2]
[377471909,1754420513424,-1189.20963748,0.00025645,2]
[377471910,1754420513626,-5000.0,0.00025645,2]
[377471911,1754420513877,-5000.0,0.00025645,2]
[377471912,1754420514095,-5000.0,0.00025645,2]
[377471913,1754420514302,-892.48,0.00025634,10]
[377471914,1754420514336,-3215.04,0.00025645,2]
[377471915,1754420514462,-5000.0,0.00025645,2]
[377471916,1754420514635,-5000.0,0.00025645,2]
[377471917,1754420514818,-5000.0,0.00025645,2]
[377471918,1754420514974,-5000.0,0.00025645,2]
[377471919,1754420515140,-5000.0,0.00025645,2]
[377471920,1754420515360,-5000.0,0.00025645,2]
[377471921,1754420515615,-5000.0,0.00025645,2]
[377471922,1754420515822,-5000.0,0.00025645,2]
[377471923,1754420516237,-5000.0,0.00025645,2]
[377471924,1754420516466,-5000.0,0.00025645,2]
[377471925,1754420516818,-5000.0,0.00025645,2]
[377471926,1754420517104,-5000.0,0.00025645,2]
[377471927,1754420517293,-5000.0,0.00025645,2]
[377471928,1754420517553,-5000.0,0.00025645,2]
[377471929,1754420517726,-5000.0,0.00025645,2]
[377471930,1754420517941,-5000.0,0.00025645,2]
[377471931,1754420518170,-5000.0,0.00025645,2]
[377471932,1754420518395,-5000.0,0.00025645,2]
[377471933,1754420518641,-5000.0,0.00025645,2]
[377471934,1754420518786,-5000.0,0.00025645,2]
[377471935,1754420518966,-5000.0,0.00025645,2]
[377471936,1754420519132,-5000.0,0.00025645,2]
[377471937,1754420519327,-5000.0,0.00025645,2]
[377471938,1754420519510,-5000.0,0.00025645,2]
[377471939,1754420519719,-5000.0,0.00025645,2]
[377471940,1754420519922,-5000.0,0.00025645,2]
[377471941,1754420520161,-5000.0,0.00025645,2]
[377471942,1754420520376,-5000.0,0.00025645,2]
[377471943,1754420520536,-5000.0,0.00025645,2]
[377471944,1754420520727,-5000.0,0.00025645,2]
[377471945,1754420520874,-5000.0,0.00025645,2]
[377471946,1754420521064,-167.92622422,0.00025645,2]
[377471947,1754420521094,-1000.0,0.00025645,2]
[377471948,1754420521127,-1000.0,0.00025645,2]
[377471949,1754420521155,-212.90094375,0.00025645,2]
[377471950,1754420521225,-238.34566406,0.00025645,2]
[377471951,1754420521258,-1905.39518126,0.00025645,2]
[377471952,1754420522604,1189.20963748,0.00025645,2]
[377471953,1754420522629,81.05381669,0.00025645,2]
[377471954,1754420523794,1058.55287847,0.00025645,2]
[377471955,1754420524738,882.12739873,0.00025645,2]
[377471956,1754420525896,735.10616561,0.00025645,2]
[377471957,1754420526830,612.58847134,0.00025645,2]
[377471958,1754420527778,510.49039278,0.00025645,2]
[377471960,1754420528700,425.40866065,0.00025645,2]
[377471961,1754420529857,354.50721721,0.00025645,2]
[377471962,1754420531065,295.42268101,0.00025645,2]
[377471963,1754420532182,44.74231751,0.00025645,2]
[377471964,1754420532205,201.44325,0.00025645,2]
[377471965,1754420533903,205.15463959,0.00025645,2]
[377471966,1754420534844,170.96219966,0.00025645,2]
[377471967,1754420536093,151.0,0.00025645,2]
[377471968,1754420541063,545.07521668,0.00025571,2]
[377471969,1754420548828,500.0,0.00025642,2]
[377471970,1754420549590,2407.27727042,0.00025645,2]
[377471971,1754420549800,500.0,0.00025642,2]
[377471972,1754420549874,191.99988615,0.00025642,2]
[377471973,1754420549905,127.0875375,0.00025642,2]
[377471974,1754420549931,372.9124625,0.00025642,2]
[377471975,1754420549964,500.0,0.00025642,2]
[377471976,1754420550002,500.0,0.00025642,2]
[377471977,1754420550040,500.0,0.00025642,2]
[377471978,1754420550118,500.0,0.00025642,2]
[377471979,1754420553577,495.74762944,0.00025642,2]
[377471980,1754420555761,409.68522204,0.00025642,2]
[377471981,1754420556922,500.0,0.00025642,2]
[377471982,1754420556951,500.0,0.00025642,2]
[377471983,1754420557027,500.0,0.00025642,2]
[377471984,1754420557073,221.65468602,0.00025642,2]
[377471985,1754420557096,278.34531398,0.00025642,2]
[377471986,1754420557136,500.0,0.00025642,2]
[377471987,1754420557222,500.0,0.00025642,2]
[377471988,1754420557478,565.61747898,0.00025642,2]
[377471989,1754420557511,500.0,0.00025642,2]
[377471990,1754420557539,500.0,0.00025642,2]
[377471991,1754420557573,500.0,0.00025642,2]
[377471992,1754420557601,500.0,0.00025642,2]
[377471993,1754420557629,500.0,0.00025642,2]
[377471994,1754420564758,656.03720704,0.00025645,2]
[377471995,1754420564781,15.27279296,0.00025645,2]
[377471996,1754420572539,1017.32123716,0.00025645,2]
[377471997,1754420581115,3967.40596988,0.00025645,2]
[377471998,1754420581139,361.28403012,0.00025645,2]
[377471999,1754420583777,251.36407842,0.00025205,2]
[377472000,1754420586560,184.20235749,0.000256,2]
[377472001,1754420588898,4203.14953397,0.00025645,2]
[377472002,1754420588921,796.85046603,0.00025645,2]
[377472003,1754420595802,4203.14953397,0.00025645,2]
[377472004,1754420595827,5000.0,0.00025645,2]
[377472005,1754420595851,5000.0,0.00025645,2]
[377472006,1754420595874,5000.0,0.00025645,2]
[377472007,1754420595896,5000.0,0.00025645,2]
[377472008,1754420595918,5000.0,0.00025645,2]
[377472009,1754420595941,5000.0,0.00025645,2]
[377472010,1754420595963,5000.0,0.00025645,2]
[377472011,1754420595986,5000.0,0.00025645,2]
[377472012,1754420596010,5000.0,0.00025645,2]
[377472013,1754420596032,5000.0,0.00025645,2]
[377472014,1754420596246,5000.0,0.00025645,2]
[377472015,1754420596277,5000.0,0.00025645,2]
[377472016,1754420596303,5000.0,0.00025645,2]
[377472017,1754420596328,5000.0,0.00025645,2]
[377472018,1754420596351,5000.0,0.00025645,2]
[377472019,1754420596377,5000.0,0.00025645,2]
[377472020,1754420596400,5000.0,0.00025645,2]
[377472021,1754420596422,5000.0,0.00025645,2]
[377472022,1754420596445,5000.0,0.00025645,2]
[377472023,1754420596468,2191.14054503,0.00025645,2]
[377472024,1754420597476,2808.85945497,0.00025645,2]
[377472025,1754420597498,2191.14054503,0.00025645,2]
[377472026,1754420598492,2808.85945497,0.00025645,2]
[377472027,1754420598516,5000.0,0.00025645,2]
[377472028,1754420598540,5000.0,0.00025645,2]
[377472029,1754420598563,1904.11195593,0.00025645,2]
[377472030,1754420605736,152.3548301,0.00025645,2]
[377472031,1754420613076,189.35763739,0.00025553,2]
[377472032,1754420614102,2754.17557658,0.00025645,2]
[377472033,1754420614130,2245.82442342,0.00025645,2]
[377472034,1754420619031,184.20235749,0.000256,2]
[377472035,1754420620586,432.66385396,0.00025571,2]
[377472036,1754420629364,2137.30936513,0.00025645,2]
[377472037,1754420629389,2862.69063487,0.00025645,2]
[377472038,1754420634762,150.0,0.0002514,2]
[377472039,1754420639454,1987.30936513,0.00025571,2]
[377472040,1754420639476,5000.0,0.00025571,2]
[377472041,1754420639497,3134.1678062,0.00025571,2]
[377472042,1754420645103,1865.8321938,0.00025645,2]
[377472043,1754420645125,3134.1678062,0.00025645,2]
[377472044,1754420668152,252.321,0.00025638,2]
[377472045,1754420670924,1613.5111938,0.00025553,2]
[377472046,1754420670949,2383.65047827,0.00025553,2]
[377472047,1754420728679,920.0,0.00025638,2]
[377472048,1754420736804,283.3376377,0.00025553,2]
[377472049,1754420741799,283.33763768,0.00025563,2]
[377472050,1754420746787,283.33763768,0.00025573,2]
[377472051,1754420761377,151.0,0.00025645,2]
[377472052,1754420842321,695.33660867,0.00024652,2]
[377472053,1754420842348,5000.0,0.00024652,2]
[377472054,1754420842375,5000.0,0.00024652,2]
[377472055,1754420842407,5000.0,0.00024652,2]
[377472056,1754420842436,5000.0,0.00024652,2]
[377472057,1754420842464,4204.66339133,0.00024652,2]
[377472058,1754420882165,795.33660867,0.00025573,2]
[377472059,1754420882189,435.62099084,0.00025573,2]
[377472060,1754420897164,4564.37900916,0.00025642,2]
[377472061,1754420897187,5000.0,0.00025642,2]
[377472062,1754420897356,4637.57596594,0.00025642,2]
[377472063,1754420897385,362.42403406,0.00025643,2]
[377472064,1754420897408,5000.0,0.00025643,2]
[377472065,1754420897431,5000.0,0.00025643,2]
[377472066,1754420897454,3839.53094104,0.00025643,2]
[377472067,1754420897481,1160.46905896,0.00025645,2]
[377472068,1754420926566,-1502.483537,0.00025552,2]
[377472069,1754420926773,-1995.032926,0.00025552,2]
[377472070,1754420926801,-500.0,0.00025644,2]
[377472071,1754420926921,-159.37881153,0.00025644,2]
[377472072,1754420926949,-500.0,0.00025644,2]
[377472073,1754420926976,-508.02237573,0.00025644,2]
[377472074,1754420927005,-500.0,0.00025644,2]
[377472075,1754420927034,-416.86310623,0.00025644,2]
[377472076,1754420927061,-331.47141302,0.00025644,2]
[377472077,1754420927242,-168.52858698,0.00025644,2]
[377472078,1754420927272,-500.0,0.00025644,2]
[377472079,1754420927300,-500.0,0.00025644,2]
[377472080,1754420927334,-214.69782244,0.00025644,2]
[377472081,1754420927362,-500.0,0.00025644,2]
[377472082,1754420927390,-425.0,0.00025644,2]
[377472083,1754420927431,-500.0,0.00025644,2]
[377472084,1754420927463,-500.0,0.00025644,2]
[377472085,1754420927493,-500.0,0.00025644,2]
[377472086,1754420927524,-500.0,0.00025644,2]
[377472087,1754420927553,-500.0,0.00025644,2]
[377472088,1754420927895,-500.0,0.00025644,2]
[377472089,1754420927924,-500.0,0.00025644,2]
[377472090,1754420927952,-500.0,0.00025644,2]
[377472091,1754420927981,-500.0,0.00025644,2]
[377472092,1754420928010,-500.0,0.00025644,2]
[377472093,1754420928161,-500.0,0.00025644,2]
[377472094,1754420928191,-500.0,0.00025644,2]
[377472095,1754420928221,-500.0,0.00025644,2]
[377472096,1754420928250,-500.0,0.00025644,2]
[377472097,1754420928281,-500.0,0.00025644,2]
[377472098,1754420928345,-500.0,0.00025644,2]
[377472099,1754420928373,-500.0,0.00025644,2]
[377472100,1754420928402,-388.11506309,0.00025644,2]
[377472101,1754420928431,-500.0,0.00025644,2]
[377472102,1754420928459,-500.0,0.00025644,2]
[377472103,1754420928635,-500.0,0.00025644,2]
[377472104,1754420928663,-500.0,0.00025644,2]
[377472105,1754420928698,-500.0,0.00025644,2]
[377472106,1754420928728,-600.0,0.00025644,2]
[377472107,1754420928759,-300.0,0.00025644,2]
[377472108,1754420928881,-200.0,0.00025644,2]
[377472109,1754420928910,-500.0,0.00025644,2]
[377472110,1754420928940,-500.0,0.00025644,2]
[377472111,1754420928969,-500.0,0.00025644,2]
[377472112,1754420928997,-500.0,0.00025644,2]
[377472113,1754420929026,-147.22368049,0.00025644,2]
[377472114,1754420929292,-305.55263902,0.00025644,2]
[377472115,1754420929325,-500.0,0.00025644,2]
[377472116,1754420929354,-488.36653667,0.00025644,2]
[377472117,1754420929383,-500.0,0.00025644,2]
[377472118,1754420929414,-500.0,0.00025644,2]
[377472119,1754420929547,-500.0,0.00025644,2]
[377472120,1754420929575,-394.63156862,0.00025644,2]
[377472121,1754420929604,-500.0,0.00025644,2]
[377472122,1754420929632,-500.0,0.00025644,2]
[377472123,1754420929660,-500.0,0.00025644,2]
[377472124,1754420929930,-500.0,0.00025644,2]
[377472125,1754420929961,-500.0,0.00025644,2]
[377472126,1754420929990,-500.0,0.00025644,2]
[377472127,1754420930021,-500.0,0.00025644,2]
[377472128,1754420930053,-500.0,0.00025644,2]
[377472129,1754420930115,-318.10144753,0.00025644,2]
[377472130,1754420930145,-500.0,0.00025644,2]
[377472131,1754420930174,-500.0,0.00025644,2]
[377472132,1754420930202,-500.0,0.00025644,2]
[377472133,1754420930229,-500.0,0.00025644,2]
[377472134,1754420930493,-500.0,0.00025644,2]
[377472135,1754420930522,-500.0,0.00025644,2]
[377472136,1754420930552,-500.0,0.00025644,2]
[377472137,1754420930583,-500.0,0.00025644,2]
[377472138,1754420930613,-500.0,0.00025644,2]
[377472139,1754420930651,-500.0,0.00025644,2]
[377472140,1754420930683,-500.0,0.00025644,2]
[377472141,1754420930716,-500.0,0.00025644,2]
[377472142,1754420930745,-500.0,0.00025644,2]
[377472143,1754420930776,-500.0,0.00025644,2]
[377472144,1754420931001,-500.0,0.00025644,2]
[377472145,1754420931035,-500.0,0.00025644,2]
[377472146,1754420931064,-500.0,0.00025644,2]
[377472147,1754420931092,-500.0,0.00025644,2]
[377472148,1754420931121,-500.0,0.00025644,2]
[377472149,1754420931263,-500.0,0.00025644,2]
[377472150,1754420931292,-500.0,0.00025644,2]
[377472151,1754420931321,-500.0,0.00025644,2]
[377472152,1754420931350,-500.0,0.00025644,2]
[377472153,1754420931382,-500.0,0.00025644,2]
[377472154,1754420933774,-441.724341,0.00024648,2]
[377472157,1754420946754,-2244.92284896,0.00025573,2]
[377472158,1754420947056,-497.2714014,0.00025573,2]
[377472159,1754420947081,-4005.4571972,0.00025573,2]
[377472160,1754420947219,-300.0,0.00025643,2]
[377472161,1754420947255,-500.0,0.00025644,2]
[377472162,1754420947290,-500.0,0.00025644,2]
[377472163,1754420947318,-500.0,0.00025644,2]
[377472164,1754420947348,-500.0,0.00025644,2]
[377472165,1754420947439,-400.0,0.00025644,2]
[377472166,1754420947478,-100.0,0.00025644,2]
[377472167,1754420947507,-500.0,0.00025644,2]
[377472168,1754420947540,-500.0,0.00025644,2]
[377472169,1754420947569,-500.0,0.00025644,2]
[377472170,1754420947601,-500.0,0.00025644,2]
[377472171,1754420947632,-300.0,0.00025644,2]
[377472172,1754420947749,-200.0,0.00025644,2]
[377472173,1754420947781,-500.0,0.00025644,2]
[377472174,1754420947812,-500.0,0.00025644,2]
[377472175,1754420947840,-500.0,0.00025644,2]